[Event "SRB-chT Women 1st League 2019"]
[Site "Subotica"]
[Date "2019.08.27"]
[Round "6"]
[White "Petrovic, Marija"]
[Black "Gruic, Jadranka"]
[Result "1/2-1/2"]
[ECO "A07"]
[WhiteElo "1987"]
[BlackElo "2117"]
[Annotator "NA"]
[PlyCount "118"]
[EventDate "2019.08.23"]
[EventType "team-tourn"]
[EventCountry "SRB"]
[SourceTitle "playchess.com"]
[Source "ChessBase"]
[SourceQuality "1"]
[TimeControl "40/5400+30:1800+30"]

1. Nf3 {[%emt 0:00:30]} d5 {[%emt 0:00:30]} 2. g3 {[%emt 0:00:00]} c6 {[%emt 0:00:00]} 3. Bg2 {[%emt 0:00:00]} Nf6 {[%emt 0:00:00]} 4. b3 {[%emt 0:00:30]} Bf5 {[%emt 0:00:30]} 5. Bb2 {[%emt 0:00:00]} h6 {[%emt 0:07:30]} 6. d3 {[%emt 0:00:00]} e6 {[%emt 0:00:30]} 7. O-O {[%emt 0:00:30]} Bc5 {[%emt 0:01:30]} 8. Nbd2 {[%emt 0:00:30]} O-O {[%emt 0:00:30]} 9. a3 {[%emt 0:02:30]} a5 {[%emt 0:00:30]} 10. c4 {[%emt 0:00:30]} b5 {[%emt 0:11:30]} 11. cxb5 {[%emt 0:09:30]} cxb5 {[%emt 0:00:00]} 12. Nd4 {[%emt 0:03:30]} Bxd4 {[%emt 0:15:00]} 13. Bxd4 {[%emt 0:00:30]} Nc6 {[%emt 0:00:00]} 14. Bb2 {[%emt 0:05:30]} Bg6 {[%emt 0:02:00]} 15. Nf3 {[%emt 0:00:30]} Nd7 {[%emt 0:06:30]} 16. Qd2 {[%emt 0:01:30]} Rc8 {[%emt 0:07:30]} 17. Rac1 {[%emt 0:01:30]} Qb6 {[%emt 0:07:30]} 18. Rc2 {[%emt 0:01:30]} b4 {[%emt 0:04:30]} 19. a4 {[%emt 0:02:30]} Nc5 {[%emt 0:04:30]} 20. Qe3 {[%emt 0:00:30]} Nd7 {[%emt 0:08:30]} 21. Rfc1 {[%emt 0:10:30]} Qxe3 {[%emt 0:03:17]} 22. fxe3 {[%emt 0:00:30]} Ne7 {[%emt 0:00:09]} 23. Nd4 {[%emt 0:00:30]} Nb8 {[%emt 0:13:35]} 24. Rc7 {[%emt 0:00:30]} Rfe8 {[%emt 0:01:34]} 25. Kf2 {[%emt 0:04:30]} Kf8 {[%emt 0:00:10]} 26. Nb5 {[%emt 0:07:30]} Rxc7 {[%emt 0:00:58]} 27. Rxc7 {[%emt 0:00:30]} Rc8 {[%emt 0:00:10]} 28. Be5 {[%emt 0:06:30]} Rxc7 {[%emt 0:01:57]} 29. Nxc7 {[%emt 0:02:30]} Nec6 {[%emt 0:00:45]} 30. Bd6+ {[%emt 0:00:00]} Kg8 {[%emt 0:00:02]} 31. Nb5 {[%emt 0:01:00]} Nd7 {[%emt 0:00:50]} 32. Nd4 {[%emt 0:01:30]} Nd8 {[%emt 0:01:58]} 33. Be7 {[%emt 0:02:30]} Nb7 {[%emt 0:00:49]} 34. Nc6 {[%emt 0:01:30]} Nbc5 {[%emt 0:00:14]} 35. Nxa5 {[%emt 0:00:30]} f6 {[%emt 0:00:01]} 36. e4 {[%emt 0:02:30]} dxe4 {[%emt 0:00:48]} 37. d4 {[%emt 0:00:30]} Na6 {[%emt 0:00:28]} 38. Nc6 {[%emt 0:01:30]} Kf7 {[%emt 0:00:58]} 39. Bxb4 {[%emt 0:01:30]} e3+ {[%emt 0:00:29]} 40. Kxe3 {[%emt 0:00:00]} Bc2 {[%emt 0:00:00]} 41. Bd6 {[%emt 0:05:00]} Bxb3 {[%emt 0:02:18]} 42. a5 {[%emt 0:02:30]} Bd5 {[%emt 0:16:29]} 43. Be4 {[%emt 0:03:30]} f5 {[%emt 0:03:24]} 44. Bxd5 {[%emt 0:05:30]} exd5 {[%emt 0:00:02]} 45. Nb4 {[%emt 0:05:30]} Nxb4 {[%emt 0:00:56]} 46. Bxb4 {[%emt 0:00:00]} Nb8 {[%emt 0:00:04]} 47. h4 {[%emt 0:00:00]} g6 {[%emt 0:02:53]} 48. Kd3 {[%emt 0:01:30]} Ke6 {[%emt 0:02:26]} 49. Bc5 {[%emt 0:02:30]} Kd7 {[%emt 0:02:00]} 50. Ke3 {[%emt 0:01:30]} Ke6 {[%emt 0:00:41]} 51. Bf8 {[%emt 0:00:00]} h5 {[%emt 0:00:05]} 52. Kf4 {[%emt 0:00:00]} Na6 {[%emt 0:01:26]} 53. Kg5 {[%emt 0:02:30]} Kf7 {[%emt 0:00:01]} 54. Bc5 {[%emt 0:00:30]} Nb8 {[%emt 0:01:52]} 55. Kh6 {[%emt 0:01:30]} Kf6 {[%emt 0:01:30]} 56. Kh7 {[%emt 0:00:30]} Kf7 {[%emt 0:00:06]} 57. Bd6 {[%emt 0:02:30]} Na6 {[%emt 0:00:04]} 58. Kh6 {[%emt 0:00:30]} Kf6 {[%emt 0:00:16]} 59. Be5+ {[%emt 0:00:30]} Kf7 1/2-1/2

[Event "SRB-chT Women 1st League 2019"]
[Site "Subotica"]
[Date "2019.08.27"]
[Round "6"]
[White "Gajcin, Jasmina"]
[Black "Stanimirovic, Marija"]
[Result "0-1"]
[ECO "B28"]
[WhiteElo "1910"]
[BlackElo "1896"]
[Annotator "NA"]
[PlyCount "76"]
[EventDate "2019.08.23"]
[EventType "team-tourn"]
[EventCountry "SRB"]
[SourceTitle "playchess.com"]
[Source "ChessBase"]
[SourceQuality "1"]
[TimeControl "40/5400+30:1800+30"]

1. e4 {[%emt 1:30:30]} c5 {[%emt 1:30:30]} 2. Nf3 {[%emt 0:00:30]} a6 {[%emt 0:00:30]} 3. Be2 {[%emt 0:00:30]} Nc6 {[%emt 0:00:30]} 4. O-O {[%emt 0:00:30]} Nf6 {[%emt 0:00:30]} 5. d3 {[%emt 0:00:30]} Qc7 {[%emt 0:00:30]} 6. Re1 {[%emt 0:00:30]} e6 {[%emt 0:00:30]} 7. Bf1 {[%emt 0:00:30]} d6 {[%emt 0:00:30]} 8. c3 {[%emt 0:00:30]} Be7 {[%emt 0:00:30]} 9. d4 {[%emt 0:00:30]} cxd4 {[%emt 0:00:30]} 10. cxd4 {[%emt 0:00:30]} d5 {[%emt 0:00:30]} 11. e5 {[%emt 0:00:30]} Ne4 {[%emt 0:00:30]} 12. Bd3 {[%emt 0:00:30]} Nb4 {[%emt 0:00:30]} 13. Na3 {[%emt 0:00:30]} Nxd3 {[%emt 0:00:30]} 14. Qxd3 {[%emt 0:00:30]} O-O {[%emt 0:00:30]} 15. Bf4 {[%emt 0:00:30]} Bd7 {[%emt 0:00:30]} 16. Nd2 {[%emt 0:00:30]} Nxd2 {[%emt 0:00:30]} 17. Qxd2 {[%emt 0:00:30]} b5 {[%emt 0:00:30]} 18. Nc2 {[%emt 0:00:30]} Rac8 {[%emt 0:00:30]} 19. Rac1 {[%emt 0:00:30]} Qb6 {[%emt 0:00:30]} 20. Bg5 {[%emt 0:00:30]} f6 {[%emt 0:00:30]} 21. exf6 {[%emt 0:00:30]} Bxf6 {[%emt 0:00:30]} 22. Bxf6 {[%emt 0:00:30]} Rxf6 {[%emt 0:00:30]} 23. Ne3 {[%emt 0:00:30]} Rxc1 {[%emt 0:00:30]} 24. Rxc1 {[%emt 0:00:30]} Rf4 {[%emt 0:00:30]} 25. Rd1 {[%emt 0:00:30]} Qd6 {[%emt 0:00:30]} 26. b4 {[%emt 0:00:30]} Qf8 {[%emt 0:00:30]} 27. h3 {[%emt 0:00:30]} h5 {[%emt 0:00:30]} 28. Rf1 {[%emt 0:00:30]} Be8 {[%emt 0:00:30]} 29. Qc3 {[%emt 0:00:30]} Bg6 {[%emt 0:00:30]} 30. a3 {[%emt 0:00:30]} Qf6 {[%emt 0:00:30]} 31. Qc8+ {[%emt 0:00:30]} Kh7 {[%emt 0:00:30]} 32. Nc2 {[%emt 0:00:30]} Bd3 {[%emt 0:00:30]} 33. Rd1 {[%emt 0:00:30]} Rxf2 {[%emt 0:00:30]} 34. Ne3 {[%emt 0:00:30]} Be4 {[%emt 0:00:30]} 35. Qe8 {[%emt 0:00:30]} Bg6 {[%emt 0:00:30]} 36. Qc8 {[%emt 0:00:30]} Qf4 {[%emt 0:00:30]} 37. Re1 {[%emt 0:00:30]} Rd2 {[%emt 0:00:30]} 38. Kh1 {[%emt 0:00:30]} Qf2 {[%emt 0:00:30]} 0-1

[Event "SRB-chT Women 1st League 2019"]
[Site "Subotica"]
[Date "2019.08.28"]
[Round "7"]
[White "Drljevic, Ljilja"]
[Black "Nestorovic, Irena"]
[Result "1-0"]
[ECO "C47"]
[WhiteElo "2162"]
[BlackElo "2050"]
[Annotator "NA"]
[PlyCount "32"]
[EventDate "2019.08.23"]
[EventType "team-tourn"]
[EventCountry "SRB"]
[SourceTitle "playchess.com"]
[Source "ChessBase"]
[SourceQuality "1"]
[TimeControl "40/5400+30:1800+30"]

1. e4 {[%emt 0:34:30]} e5 {[%emt 0:27:30]} 2. Nc3 {[%emt 0:00:30]} Nf6 {[%emt 0:00:30]} 3. g3 {[%emt 0:00:30]} d5 {[%emt 0:00:30]} 4. exd5 {[%emt 0:00:30]} Nxd5 {[%emt 0:00:30]} 5. Bg2 {[%emt 0:01:30]} Nxc3 {[%emt 0:00:30]} 6. bxc3 {[%emt 0:00:30]} Bd6 {[%emt 0:00:30]} 7. Nf3 {[%emt 0:00:30]} Nc6 {[%emt 0:00:30]} 8. O-O {[%emt 0:00:30]} O-O {[%emt 0:00:30]} 9. Rb1 {[%emt 0:00:30]} Rb8 {[%emt 0:00:30]} 10. Re1 {[%emt 0:00:30]} Bg4 {[%emt 0:00:30]} 11. h3 {[%emt 0:00:30]} Bh5 {[%emt 0:00:30]} 12. d3 {[%emt 0:00:30]} f6 {[%emt 0:00:30]} 13. Be3 {[%emt 0:03:30]} b6 {[%emt 0:09:30]} 14. g4 {[%emt 0:11:30]} Be8 {[%emt 0:01:30]} 15. d4 {[%emt 0:09:30]} exd4 {[%emt 0:10:30]} 16. cxd4 {[%emt 0:01:30]} Na5 {[%emt 0:42:07]} 1-0

[Event "SRB-chT Women 1st League 2019"]
[Site "Subotica"]
[Date "2019.08.28"]
[Round "7"]
[White "Nestorovic, Katarina"]
[Black "Prudnikova, Svetlana"]
[Result "1/2-1/2"]
[ECO "B85"]
[WhiteElo "2159"]
[BlackElo "2234"]
[Annotator "NA"]
[PlyCount "32"]
[EventDate "2019.08.23"]
[EventType "team-tourn"]
[EventCountry "SRB"]
[SourceTitle "playchess.com"]
[Source "ChessBase"]
[SourceQuality "1"]
[TimeControl "40/5400+30:1800+30"]

1. e4 {[%emt 0:27:30]} c5 {[%emt 0:26:30]} 2. Nf3 {[%emt 0:00:30]} d6 {[%emt 0:00:30]} 3. d4 {[%emt 0:00:30]} cxd4 {[%emt 0:00:30]} 4. Nxd4 {[%emt 0:00:30]} Nf6 {[%emt 0:00:30]} 5. Nc3 {[%emt 0:00:30]} a6 {[%emt 0:00:30]} 6. Be2 {[%emt 0:00:30]} e6 {[%emt 0:00:30]} 7. f4 {[%emt 0:00:30]} Be7 {[%emt 0:00:30]} 8. Be3 {[%emt 0:00:30]} Qc7 {[%emt 0:09:30]} 9. O-O {[%emt 0:04:30]} O-O {[%emt 0:00:30]} 10. Qe1 {[%emt 0:01:30]} Nc6 {[%emt 0:00:30]} 11. Qg3 {[%emt 0:00:30]} Nxd4 {[%emt 0:00:30]} 12. Bxd4 {[%emt 0:00:30]} b5 {[%emt 0:00:30]} 13. a3 {[%emt 0:00:30]} Bb7 {[%emt 0:00:30]} 14. Kh1 {[%emt 0:00:30]} Bc6 {[%emt 0:00:30]} 15. Rae1 {[%emt 0:00:30]} Qb7 {[%emt 0:00:30]} 16. Bf3 {[%emt 0:00:30]} Rad8 1/2-1/2

[Event "SRB-chT Women 1st League 2019"]
[Site "Subotica"]
[Date "2019.08.28"]
[Round "7"]
[White "Miladinovic, Lena"]
[Black "Gajcin, Jasmina"]
[Result "1/2-1/2"]
[ECO "A35"]
[WhiteElo "2119"]
[BlackElo "1910"]
[Annotator "NA"]
[PlyCount "78"]
[EventDate "2019.08.23"]
[EventType "team-tourn"]
[EventCountry "SRB"]
[SourceTitle "playchess.com"]
[Source "ChessBase"]
[SourceQuality "1"]
[TimeControl "40/5400+30:1800+30"]

1. Nf3 Nf6 2. b3 g6 3. Bb2 Bg7 4. c4 c5 5. e3 Nc6 6. Be2 O-O 7. O-O b6 8. d4 cxd4 9. Nxd4 Bb7 10. Nc3 Nxd4 11. Qxd4 Nd5 12. Qd2 Nxc3 13. Bxc3 Bxc3 14. Qxc3 Qc7 15. Qd4 Qc6 16. Bf3 Qc7 17. Bxb7 Qxb7 18. Rfd1 d6 19. Qf4 Rac8 20. Rd5 Rc7 21. Rad1 Rfc8 22. h4 Rc5 23. Qf3 Qd7 24. h5 b5 25. Rxc5 Rxc5 26. cxb5 Rxb5 27. hxg6 hxg6 28. Qa8+ Kg7 29. Rc1 Rb7 30. Rc8 Rc7 31. Rh8 Qf5 32. Qf8+ Kf6 33. Rh4 Rc1+ 34. Kh2 Ke6 35. Rf4 Qh5+ 36. Kg3 Qg5+ 37. Kf3 Qh5+ 38. Kg3 Qg5+ 39. Kf3 Qh5+ 1/2-1/2

[Event "SRB-chT Women 1st League 2019"]
[Site "Subotica"]
[Date "2019.08.28"]
[Round "7"]
[White "Gruic, Jadranka"]
[Black "Blagojevic, Tijana"]
[Result "1-0"]
[ECO "D00"]
[WhiteElo "2117"]
[BlackElo "2155"]
[Annotator "NA"]
[PlyCount "36"]
[EventDate "2019.08.23"]
[EventType "team-tourn"]
[EventCountry "SRB"]
[SourceTitle "playchess.com"]
[Source "ChessBase"]
[SourceQuality "1"]
[TimeControl "40/5400+30:1800+30"]

1. d4 {[%emt 0:19:30]} d5 {[%emt 0:07:30]} 2. Bf4 {[%emt 0:01:30]} Nf6 {[%emt 0:00:30]} 3. e3 {[%emt 0:00:30]} c5 {[%emt 0:00:30]} 4. c3 {[%emt 0:00:30]} Nc6 {[%emt 0:00:30]} 5. Nd2 {[%emt 0:00:30]} Bf5 {[%emt 0:00:30]} 6. Qb3 {[%emt 0:00:30]} Qd7 {[%emt 0:00:30]} 7. Ngf3 {[%emt 0:00:30]} c4 {[%emt 0:00:30]} 8. Qd1 {[%emt 0:00:30]} e6 {[%emt 0:00:30]} 9. h3 {[%emt 0:00:30]} h6 {[%emt 0:00:30]} 10. Be2 {[%emt 0:00:30]} Be7 {[%emt 0:03:30]} 11. O-O {[%emt 0:01:30]} O-O {[%emt 0:02:30]} 12. Ne5 {[%emt 0:06:30]} Qc8 {[%emt 0:05:30]} 13. Re1 {[%emt 0:11:30]} Nxe5 {[%emt 0:18:30]} 14. Bxe5 {[%emt 0:01:30]} b5 {[%emt 0:06:30]} 15. Bf3 {[%emt 0:05:30]} Bd3 {[%emt 0:00:30]} 16. Be2 {[%emt 0:03:30]} Bh7 {[%emt 0:04:30]} 17. Bf3 {[%emt 0:00:00]} Qc6 {[%emt 0:10:30]} 18. Rc1 {[%emt 0:44:00]} Rac8 {[%emt 0:35:30]} 1-0

[Event "SRB-chT Women 1st League 2019"]
[Site "Subotica"]
[Date "2019.08.28"]
[Round "7"]
[White "Kovacevic, Radmila"]
[Black "Injac, Teodora"]
[Result "1-0"]
[ECO "A01"]
[WhiteElo "2117"]
[BlackElo "2223"]
[Annotator "NA"]
[PlyCount "97"]
[EventDate "2019.08.23"]
[EventType "team-tourn"]
[EventCountry "SRB"]
[SourceTitle "playchess.com"]
[Source "ChessBase"]
[SourceQuality "1"]
[TimeControl "40/5400+30:1800+30"]

1. b3 Nf6 2. Bb2 g6 3. g4 Bg7 4. Bg2 O-O 5. h3 d6 6. e3 e5 7. Ne2 Nc6 8. d4 {[%emt 0:12:00]} exd4 {[%emt 0:34:00]} 9. Nxd4 {[%emt 0:01:30]} Bd7 {[%emt 0:05:30]} 10. Nxc6 {[%emt 0:06:30]} Bxc6 {[%emt 0:01:30]} 11. Bxc6 {[%emt 0:00:30]} bxc6 {[%emt 0:00:00]} 12. Nd2 {[%emt 0:01:30]} Re8 {[%emt 0:08:00]} 13. Qf3 {[%emt 0:04:30]} Nd5 {[%emt 0:11:30]} 14. Bxg7 {[%emt 0:04:30]} Kxg7 {[%emt 0:00:30]} 15. c4 {[%emt 0:01:30]} Nb4 {[%emt 0:08:30]} 16. O-O {[%emt 0:03:30]} c5 {[%emt 0:00:30]} 17. a3 {[%emt 0:02:30]} Nd3 {[%emt 0:00:30]} 18. Qd5 {[%emt 0:00:00]} Ne5 {[%emt 0:00:30]} 19. f4 {[%emt 0:00:00]} Nd7 {[%emt 0:01:30]} 20. Qd3 {[%emt 0:03:30]} Qe7 {[%emt 0:03:30]} 21. Rae1 {[%emt 0:01:30]} Rad8 {[%emt 0:14:53]} 22. Kg2 {[%emt 0:28:30]} Kg8 {[%emt 0:00:30]} 23. Rh1 {[%emt 0:00:30]} Qe6 {[%emt 0:00:30]} 24. Kf3 {[%emt 0:00:30]} Nf6 {[%emt 0:00:30]} 25. e4 {[%emt 0:00:30]} Nd7 {[%emt 0:00:30]} 26. h4 {[%emt 0:00:30]} Qf6 {[%emt 0:00:30]} 27. Kg3 {[%emt 0:00:30]} Nb8 {[%emt 0:00:30]} 28. Qe3 {[%emt 0:00:30]} Nc6 {[%emt 0:00:30]} 29. Nf3 {[%emt 0:00:30]} Rb8 {[%emt 0:00:30]} 30. g5 {[%emt 0:00:30]} Qe6 {[%emt 0:00:30]} 31. h5 {[%emt 0:00:30]} Nd4 {[%emt 0:00:30]} 32. Nxd4 {[%emt 0:00:30]} cxd4 {[%emt 0:00:30]} 33. Qd3 {[%emt 0:00:30]} c5 {[%emt 0:00:30]} 34. hxg6 {[%emt 0:00:30]} fxg6 {[%emt 0:00:30]} 35. b4 {[%emt 0:00:30]} a6 {[%emt 0:00:30]} 36. Re2 {[%emt 0:00:30]} cxb4 {[%emt 0:00:30]} 37. Rxh7 {[%emt 0:00:30]} Re7 {[%emt 0:00:30]} 38. Rxe7 {[%emt 0:00:30]} Qxe7 {[%emt 0:00:30]} 39. e5 {[%emt 0:00:30]} Qe6 {[%emt 0:00:30]} 40. exd6 {[%emt 0:00:30]} Qxd6 {[%emt 0:00:30]} 41. c5 {[%emt 0:30:30]} Qd7 {[%emt 0:30:30]} 42. Qxg6+ {[%emt 0:00:30]} Qg7 {[%emt 0:00:30]} 43. Re8+ {[%emt 0:00:30]} Rxe8 {[%emt 0:00:30]} 44. Qxe8+ {[%emt 0:00:30]} Kh7 {[%emt 0:00:30]} 45. axb4 {[%emt 0:00:30]} Qb7 {[%emt 0:00:30]} 46. Qh5+ {[%emt 0:00:30]} Kg8 {[%emt 0:00:30]} 47. g6 {[%emt 0:00:30]} d3 {[%emt 0:00:30]} 48. c6 {[%emt 0:00:30]} Qg7 {[%emt 0:00:30]} 49. Qh7+ {[%emt 0:00:30]} 1-0

[Event "SRB-chT Women 1st League 2019"]
[Site "Subotica"]
[Date "2019.08.28"]
[Round "7"]
[White "Tomin, Ksenija"]
[Black "Petrovic, Marija"]
[Result "1-0"]
[ECO "C41"]
[WhiteElo "2041"]
[BlackElo "1987"]
[Annotator "NA"]
[PlyCount "40"]
[EventDate "2019.08.23"]
[EventType "team-tourn"]
[EventCountry "SRB"]
[SourceTitle "playchess.com"]
[Source "ChessBase"]
[SourceQuality "1"]
[TimeControl "40/5400+30:1800+30"]

1. e4 {[%emt 0:38:30]} e5 {[%emt 0:01:30]} 2. Nf3 {[%emt 0:00:30]} Qe7 {[%emt 0:00:30]} 3. Nc3 {[%emt 0:00:30]} c6 {[%emt 0:00:30]} 4. d4 {[%emt 0:00:30]} d6 {[%emt 0:00:30]} 5. Bc4 {[%emt 0:00:30]} h6 {[%emt 0:00:30]} 6. O-O {[%emt 0:00:30]} Nf6 {[%emt 0:00:30]} 7. a4 {[%emt 0:01:30]} Qc7 {[%emt 0:00:30]} 8. a5 {[%emt 0:00:30]} Be7 {[%emt 0:00:30]} 9. h3 {[%emt 0:00:30]} Nbd7 {[%emt 0:00:30]} 10. Be3 {[%emt 0:00:30]} Nf8 {[%emt 0:00:30]} 11. Nd2 {[%emt 0:00:30]} g5 {[%emt 0:00:30]} 12. dxe5 {[%emt 0:08:30]} dxe5 {[%emt 0:00:00]} 13. f3 {[%emt 0:06:30]} Ng6 {[%emt 0:04:00]} 14. Qe1 {[%emt 0:07:30]} Nf4 {[%emt 0:02:30]} 15. Qf2 {[%emt 0:02:30]} N6h5 {[%emt 0:06:30]} 16. Rfd1 {[%emt 0:07:30]} Bxh3 {[%emt 0:11:30]} 17. g3 {[%emt 0:01:30]} Rg8 {[%emt 0:04:30]} 18. Kh2 {[%emt 0:14:46]} Bf8 {[%emt 0:36:30]} 19. Bc5 {[%emt 0:00:29]} O-O-O {[%emt 0:02:30]} 20. Bxf8 {[%emt 0:00:14]} Nf6 {[%emt 0:00:00]} 1-0

[Event "SRB-chT Women 1st League 2019"]
[Site "Subotica"]
[Date "2019.08.29"]
[Round "8"]
[White "Bulmaga, Irina"]
[Black "Batsiashvili, Nino"]
[Result "1/2-1/2"]
[ECO "B12"]
[WhiteElo "2444"]
[BlackElo "2416"]
[Annotator "NA"]
[PlyCount "84"]
[EventDate "2019.08.23"]
[EventType "team-tourn"]
[EventCountry "SRB"]
[SourceTitle "playchess.com"]
[Source "ChessBase"]
[SourceQuality "1"]
[TimeControl "40/5400+30:1800+30"]

1. e4 {[%emt 0:00:30]} c6 {[%emt 0:00:30]} 2. d4 {[%emt 0:00:00]} d5 {[%emt 0:00:00]} 3. e5 {[%emt 0:00:00]} Bf5 {[%emt 0:00:00]} 4. Nf3 {[%emt 0:00:30]} e6 {[%emt 0:00:30]} 5. Be2 {[%emt 0:00:00]} Ne7 {[%emt 0:00:00]} 6. O-O {[%emt 0:00:00]} Ng6 {[%emt 0:00:00]} 7. Be3 {[%emt 0:08:30]} Nd7 {[%emt 0:00:30]} 8. Ne1 {[%emt 0:04:30]} h5 {[%emt 0:01:30]} 9. Nd2 {[%emt 0:10:30]} h4 {[%emt 0:05:30]} 10. h3 {[%emt 0:01:30]} c5 {[%emt 0:02:30]} 11. c3 {[%emt 0:07:30]} Qb6 {[%emt 0:04:30]} 12. b4 {[%emt 0:03:30]} c4 {[%emt 0:14:30]} 13. a4 {[%emt 0:16:30]} a5 {[%emt 0:00:30]} 14. b5 {[%emt 0:05:30]} f6 {[%emt 0:04:30]} 15. Bg4 {[%emt 0:04:30]} Ne7 {[%emt 0:05:30]} 16. Bh5+ {[%emt 0:08:30]} g6 {[%emt 0:01:30]} 17. Be2 {[%emt 0:00:30]} Bg7 {[%emt 0:04:30]} 18. exf6 {[%emt 0:02:30]} Bxf6 {[%emt 0:01:30]} 19. Ndf3 {[%emt 0:04:34]} Nc8 {[%emt 0:08:30]} 20. Ne5 {[%emt 0:03:29]} Nd6 {[%emt 0:01:30]} 21. N1f3 {[%emt 0:02:01]} O-O-O {[%emt 0:02:30]} 22. Qc1 {[%emt 0:00:21]} Rdg8 {[%emt 0:08:30]} 23. Nh2 {[%emt 0:00:45]} g5 {[%emt 0:10:30]} 24. Nhg4 {[%emt 0:00:22]} Qd8 {[%emt 0:04:10]} 25. Bf3 {[%emt 0:07:23]} Be7 {[%emt 0:04:05]} 26. Re1 {[%emt 0:00:41]} Nf6 {[%emt 0:03:32]} 27. Ra2 {[%emt 0:01:03]} Nxg4 {[%emt 0:02:37]} 28. Nxg4 {[%emt 0:00:30]} Ne4 {[%emt 0:00:23]} 29. Ne5 {[%emt 0:02:01]} Rh7 {[%emt 0:00:14]} 30. Bxe4 {[%emt 0:01:14]} Bxe4 {[%emt 0:00:12]} 31. f3 {[%emt 0:00:27]} Bf5 {[%emt 0:00:20]} 32. Bf2 {[%emt 0:00:49]} Bd6 {[%emt 0:00:42]} 33. Rae2 {[%emt 0:00:45]} Rhg7 {[%emt 0:01:45]} 34. Kh1 {[%emt 0:00:12]} Qf8 {[%emt 0:01:29]} 35. Qe3 {[%emt 0:02:57]} Bb8 {[%emt 0:01:58]} 36. Ra2 {[%emt 0:00:02]} Qd8 {[%emt 0:04:12]} 37. Bg1 {[%emt 0:00:20]} Bd6 {[%emt 0:00:30]} 38. Bh2 {[%emt 0:00:40]} Qc7 {[%emt 0:00:25]} 39. Rb2 {[%emt 0:00:00]} b6 {[%emt 0:00:00]} 40. Qg1 {[%emt 0:00:00]} Rf8 {[%emt 0:00:00]} 41. Rbe2 {[%emt 0:05:54]} Rf6 {[%emt 0:05:26]} 42. Re3 {[%emt 0:03:30]} Kb7 {[%emt 0:03:30]} 1/2-1/2

[Event "SRB-chT Women 1st League 2019"]
[Site "Subotica"]
[Date "2019.08.29"]
[Round "8"]
[White "Rapport, Jovana"]
[Black "Doluhanova, Evgeniya"]
[Result "0-1"]
[ECO "D02"]
[WhiteElo "2370"]
[BlackElo "2305"]
[Annotator "NA"]
[PlyCount "136"]
[EventDate "2019.08.23"]
[EventType "team-tourn"]
[EventCountry "SRB"]
[SourceTitle "playchess.com"]
[Source "ChessBase"]
[SourceQuality "1"]
[TimeControl "40/5400+30:1800+30"]

1. d4 {[%emt 0:00:30]} Nf6 {[%emt 0:00:30]} 2. Nf3 {[%emt 0:00:00]} e6 {[%emt 0:00:00]} 3. Bf4 {[%emt 0:00:00]} d5 {[%emt 0:00:00]} 4. e3 {[%emt 0:00:30]} Bd6 {[%emt 0:00:00]} 5. Bd3 {[%emt 0:03:30]} b6 {[%emt 0:01:00]} 6. Ne5 {[%emt 0:01:30]} Ba6 {[%emt 0:03:30]} 7. Bxa6 {[%emt 0:22:30]} Nxa6 {[%emt 0:00:00]} 8. Qe2 {[%emt 0:00:00]} Nb8 {[%emt 0:00:00]} 9. Qb5+ {[%emt 0:00:00]} Nfd7 {[%emt 0:15:30]} 10. Nd2 {[%emt 0:09:30]} a6 {[%emt 0:01:30]} 11. Qe2 {[%emt 0:00:30]} Qe7 {[%emt 0:01:30]} 12. c4 {[%emt 0:04:30]} Bxe5 {[%emt 0:04:30]} 13. dxe5 {[%emt 0:00:30]} Nc6 {[%emt 0:00:30]} 14. Rc1 {[%emt 0:08:30]} Ndxe5 {[%emt 0:00:30]} 15. cxd5 {[%emt 0:00:30]} exd5 {[%emt 0:00:30]} 16. O-O {[%emt 0:00:30]} O-O {[%emt 0:00:30]} 17. Nf3 {[%emt 0:03:30]} Rfd8 {[%emt 0:19:30]} 18. Rc3 {[%emt 0:03:30]} Nxf3+ {[%emt 0:01:30]} 19. Qxf3 {[%emt 0:07:30]} Ne5 {[%emt 0:00:30]} 20. Bxe5 {[%emt 0:04:30]} Qxe5 {[%emt 0:00:00]} 21. Rc6 {[%emt 0:00:00]} Rd7 {[%emt 0:00:00]} 22. b3 {[%emt 0:00:00]} Re8 {[%emt 0:02:30]} 23. g3 {[%emt 0:02:30]} Re6 {[%emt 0:02:30]} 24. Rfc1 {[%emt 0:01:30]} g6 {[%emt 0:03:30]} 25. Qg4 {[%emt 0:07:37]} a5 {[%emt 0:07:30]} 26. Qa4 {[%emt 0:00:37]} Rxc6 {[%emt 0:00:30]} 27. Qxc6 {[%emt 0:00:54]} Qe6 {[%emt 0:00:30]} 28. Kf1 {[%emt 0:05:39]} Re7 {[%emt 0:07:30]} 29. a3 {[%emt 0:04:02]} Kg7 {[%emt 0:06:30]} 30. Qc3+ {[%emt 0:01:51]} Qf6 {[%emt 0:01:30]} 31. Qxf6+ {[%emt 0:02:18]} Kxf6 {[%emt 0:00:00]} 32. Rc6+ {[%emt 0:00:02]} Ke5 {[%emt 0:00:00]} 33. b4 {[%emt 0:02:44]} axb4 {[%emt 0:02:30]} 34. axb4 {[%emt 0:00:01]} d4 {[%emt 0:00:30]} 35. exd4+ {[%emt 0:04:42]} Kxd4 {[%emt 0:00:30]} 36. Kg2 {[%emt 0:00:00]} h5 {[%emt 0:00:30]} 37. Kf3 {[%emt 0:01:23]} Ke5 {[%emt 0:00:30]} 38. h4 {[%emt 0:00:17]} Kf5 {[%emt 0:00:30]} 39. b5 {[%emt 0:00:46]} f6 {[%emt 0:00:00]} 40. Kg2 {[%emt 0:00:00]} g5 {[%emt 0:00:00]} 41. hxg5 {[%emt 0:00:37]} fxg5 {[%emt 0:03:30]} 42. Kh2 {[%emt 0:01:30]} g4 {[%emt 0:03:30]} 43. Kg2 {[%emt 0:00:30]} Re5 {[%emt 0:00:00]} 44. Rxc7 {[%emt 0:02:30]} Rxb5 {[%emt 0:00:00]} 45. Rb7 {[%emt 0:00:30]} Ke4 {[%emt 0:01:30]} 46. Rb8 {[%emt 0:00:30]} Kd5 {[%emt 0:00:30]} 47. Rh8 {[%emt 0:01:30]} Kc6 {[%emt 0:00:30]} 48. Rh6+ {[%emt 0:01:30]} Kb7 {[%emt 0:00:30]} 49. f4 {[%emt 0:02:30]} gxf3+ {[%emt 0:09:30]} 50. Kxf3 {[%emt 0:00:30]} Ka6 {[%emt 0:00:00]} 51. Rg6 {[%emt 0:03:30]} Ka5 {[%emt 0:01:00]} 52. Ke3 {[%emt 0:00:30]} Rd5 {[%emt 0:01:30]} 53. Ke4 {[%emt 0:00:30]} Rc5 {[%emt 0:00:30]} 54. Kd4 {[%emt 0:01:30]} Kb5 {[%emt 0:04:30]} 55. Kd3 {[%emt 0:00:30]} Ka5 {[%emt 0:02:30]} 56. g4 {[%emt 0:05:23]} hxg4 {[%emt 0:00:00]} 57. Rxg4 {[%emt 0:00:37]} b5 {[%emt 0:00:00]} 58. Rg8 {[%emt 0:05:33]} Ka4 {[%emt 0:00:30]} 59. Kd2 {[%emt 0:00:14]} b4 {[%emt 0:01:30]} 60. Ra8+ {[%emt 0:01:19]} Kb3 {[%emt 0:00:00]} 61. Rb8 {[%emt 0:00:14]} Ka3 {[%emt 0:00:00]} 62. Rb7 {[%emt 0:04:38]} b3 {[%emt 0:00:30]} 63. Rb8 {[%emt 0:00:18]} Kb2 {[%emt 0:00:30]} 64. Kd3 {[%emt 0:00:14]} Rc7 {[%emt 0:02:30]} 65. Rh8 {[%emt 0:02:32]} Kb1 {[%emt 0:02:30]} 66. Rb8 {[%emt 0:01:07]} b2 {[%emt 0:01:30]} 67. Rh8 {[%emt 0:00:42]} Ra7 {[%emt 0:01:30]} 68. Rb8 {[%emt 0:02:55]} Ka1 {[%emt 0:00:30]} 0-1